bitfinex/quotes_BTCUSD_20241226
["timestamp","ask_amount","ask_price","bid_price","bid_amount"]
[1735181237156,0.20598632,98705.0,98692.0,0.3243258]
[1735181237564,0.21198632,98705.0,98692.0,0.3243258]
[1735181238400,0.11198632,98705.0,98697.0,0.162111]
[1735181238637,0.008,98705.0,98697.0,0.162111]
[1735181238840,0.002,98705.0,98701.0,0.162104]
[1735181239086,0.005,98705.0,98704.0,0.02805821]
[1735181239266,0.007,98705.0,98704.0,0.02805821]
[1735181239875,0.005,98705.0,98704.0,0.02805821]
[1735181240290,0.00126629,98719.0,98705.0,0.162099]
[1735181240495,0.15,98717.0,98705.0,0.162099]
[1735181240702,0.25398632,98717.0,98707.0,0.162095]
[1735181241137,0.25398632,98717.0,98708.0,0.01311389]
[1735181241336,0.1,98715.0,98708.0,0.01311389]
[1735181241762,0.157,98717.0,98708.0,0.01311389]
[1735181241963,0.1,98721.0,98709.0,0.162092]
[1735181242370,0.007,98717.0,98710.0,0.17520073]
[1735181242782,0.0071714,98717.0,98710.0,0.17520073]
[1735181242971,0.0071714,98717.0,98710.0,0.01311073]
[1735181243205,0.0071714,98717.0,98705.0,0.00051268]
[1735181243351,0.0071714,98717.0,98712.0,0.162086]
[1735181243549,0.0001714,98717.0,98712.0,0.162086]
[1735181243752,0.0001714,98717.0,98713.0,0.01310598]
[1735181243955,0.0021714,98717.0,98713.0,0.01310598]
[1735181244180,0.0001714,98717.0,98713.0,0.01310598]
[1735181244584,0.0021714,98717.0,98713.0,0.00814598]
[1735181244793,0.0001714,98717.0,98713.0,0.01227773]
[1735181245226,0.0021714,98717.0,98713.0,0.01227773]
[1735181246043,0.0021714,98717.0,98714.0,0.324168]
[1735181246420,0.0021714,98717.0,98715.0,0.01227615]
[1735181246819,0.0001714,98717.0,98716.0,0.162081]
[1735181246922,0.0001714,98717.0,98716.0,0.17435557]
[1735181247156,0.0001714,98717.0,98716.0,0.01227457]
[1735181247541,0.0001714,98717.0,98714.0,0.162084]
[1735181247757,0.0001714,98717.0,98716.0,0.01227457]
[1735181247973,0.0001714,98717.0,98714.0,0.162084]
[1735181248178,0.0001714,98717.0,98716.0,0.01228375]
[1735181248421,0.0001714,98717.0,98714.0,0.162084]
[1735181248627,0.0001714,98717.0,98716.0,0.01228375]
[1735181248848,0.0001714,98717.0,98715.0,0.01228533]
[1735181249051,0.0001714,98717.0,98716.0,0.01228375]
[1735181249451,0.0001714,98717.0,98713.0,0.00051256]
[1735181249895,0.0001714,98717.0,98714.0,0.162084]
[1735181250103,0.0001714,98717.0,98714.0,0.17437091]
[1735181251290,0.0001714,98717.0,98716.0,0.162081]
[1735181251512,0.0001714,98717.0,98716.0,0.23759336]
[1735181251721,0.0001714,98717.0,98716.0,0.27233662]
[1735181253810,0.0001714,98717.0,98716.0,0.47632294]
[1735181254784,0.0011714,98717.0,98716.0,0.47632294]
[1735181256079,0.0011714,98717.0,98716.0,0.01225562]
[1735181256293,0.0001714,98717.0,98716.0,0.01276801]
[1735181256515,0.0011714,98717.0,98702.0,0.0825]
[1735181256729,0.0011714,98717.0,98716.0,0.01019769]
[1735181256947,0.0011714,98717.0,98706.0,0.162096]
[1735181257160,0.0011714,98717.0,98707.0,0.00051265]
[1735181257380,0.0001714,98717.0,98707.0,0.00051265]
[1735181257599,0.162089,98712.0,98708.0,0.01021034]
[1735181258034,0.00126634,98711.0,98700.0,0.0001]
[1735181258216,0.26606832,98716.0,98700.0,0.0001]
[1735181259098,0.26606832,98716.0,98701.0,0.162104]
[1735181259267,0.00126634,98715.0,98700.0,0.0001]
[1735181259485,0.162086,98713.0,98705.0,0.01023277]
[1735181259689,0.10525272,98712.0,98700.0,0.0001]
[1735181259898,0.162089,98711.0,98700.0,0.0001]
[1735181260096,0.162092,98709.0,98700.0,0.0001]
[1735181260297,0.26607832,98709.0,98700.0,0.0001]
[1735181260495,0.00126641,98708.0,98700.0,0.0001]
[1735181260846,0.47717632,98707.0,98700.0,0.0001]
[1735181261091,0.1,98705.0,98680.0,0.10616806]
[1735181261302,0.26735282,98704.0,98687.0,0.162127]
[1735181261729,0.26735282,98704.0,98688.0,0.01029953]
[1735181262627,0.42945382,98704.0,98688.0,0.01029953]
[1735181262853,0.10398632,98704.0,98693.0,0.162117]
[1735181263071,0.002,98704.0,98690.0,0.023]
[1735181263277,0.002,98704.0,98694.0,0.162117]
[1735181263506,0.002,98704.0,98700.0,0.162106]
[1735181263749,0.002,98704.0,98700.0,0.324213]
[1735181263956,0.002,98704.0,98701.0,0.01030087]
[1735181264195,0.008,98704.0,98702.0,0.162104]
[1735181264418,0.006,98704.0,98702.0,0.162104]
[1735181264626,0.09058394,98713.0,98702.0,0.162104]
[1735181264853,0.002,98704.0,98702.0,0.162104]
[1735181265089,0.006,98704.0,98703.0,0.01029771]
[1735181265309,0.004,98704.0,98703.0,0.01029771]
[1735181265525,0.005,98704.0,98703.0,0.01029771]
[1735181266181,0.004,98704.0,98703.0,0.01029771]
[1735181266843,0.0001714,98717.0,98703.0,0.01029771]
[1735181267057,0.003,98704.0,98703.0,0.01029771]
[1735181267253,0.1,98715.0,98703.0,0.01029771]
[1735181267453,0.00126632,98714.0,98700.0,0.1621917]
[1735181267678,0.00126632,98714.0,98702.0,0.162104]
[1735181267896,0.0001714,98717.0,98715.0,0.162081]
[1735181268117,0.0001714,98717.0,98716.0,0.01027715]
[1735181268547,0.0001714,98717.0,98715.0,0.162081]
[1735181268779,0.0001714,98717.0,98716.0,0.01031718]
[1735181269232,0.0021714,98717.0,98715.0,0.162081]
[1735181269454,0.0021714,98717.0,98716.0,0.01031718]
[1735181269663,0.0021714,98717.0,98715.0,0.162081]
[1735181270101,0.0021714,98717.0,98716.0,0.01031718]
[1735181270347,0.0071714,98717.0,98715.0,0.162081]
[1735181270580,0.0001714,98717.0,98716.0,0.01026792]
[1735181270814,0.0051714,98717.0,98716.0,0.01026792]
[1735181271010,0.0051714,98717.0,98711.0,0.01026517]
[1735181271011,0.0021714,98717.0,98711.0,0.01026517]
[1735181271283,0.0021714,98717.0,98716.0,0.01026792]
[1735181271467,0.0051714,98717.0,98712.0,0.162087]
[1735181271697,0.0021714,98717.0,98712.0,0.162087]
[1735181271896,0.0021714,98717.0,98713.0,0.01027266]
[1735181272364,0.0001714,98717.0,98713.0,0.01027266]
[1735181272503,0.0001714,98717.0,98709.0,0.17229822]
[1735181272947,0.0001714,98717.0,98710.0,0.0102774]
[1735181273156,0.0001714,98717.0,98716.0,0.001]
[1735181273357,0.0001714,98717.0,98710.0,0.0102774]
[1735181273560,0.0001714,98717.0,98716.0,0.01026792]
[1735181273772,0.0001714,98717.0,98709.0,0.163092]
[1735181273976,0.0001714,98717.0,98716.0,0.01026792]
[1735181274388,0.0001714,98717.0,98716.0,0.002]
[1735181274607,0.0001714,98717.0,98716.0,0.01026792]
[1735181274831,0.0001714,98717.0,98715.0,0.162081]
[1735181274832,0.0021714,98717.0,98715.0,0.162081]
[1735181275206,0.0021714,98717.0,98716.0,0.01026792]
[1735181275873,0.0021714,98717.0,98709.0,0.162092]
[1735181276113,0.0001714,98717.0,98716.0,0.01026792]
[1735181276360,0.0001714,98717.0,98714.0,0.162084]
[1735181276599,0.0001714,98717.0,98716.0,0.01126792]
[1735181276895,0.0001714,98717.0,98715.0,0.0102695]
[1735181277264,0.0001714,98717.0,98714.0,0.162084]
[1735181277673,0.0001714,98717.0,98715.0,0.0102695]
[1735181278101,0.0001714,98717.0,98715.0,0.001]
[1735181278340,0.0001714,98717.0,98716.0,0.01026792]
[1735181278794,0.0001714,98717.0,98715.0,0.001]
[1735181279037,0.0001714,98717.0,98716.0,0.01026792]
[1735181279499,0.0001714,98717.0,98713.0,0.162084]
[1735181279689,0.0001714,98717.0,98716.0,0.01026792]
[1735181279892,0.0001714,98717.0,98714.0,0.001]
[1735181280063,0.0001714,98717.0,98716.0,0.01026792]
[1735181280658,0.0001714,98717.0,98709.0,0.162092]
[1735181280903,0.0001714,98717.0,98716.0,0.01126792]
[1735181282395,0.0001714,98717.0,98716.0,0.01026792]
[1735181282868,0.0001714,98717.0,98714.0,0.324168]
[1735181283094,0.0001714,98717.0,98716.0,0.01026792]
[1735181283364,0.0001714,98717.0,98716.0,0.163081]
[1735181283628,0.0001714,98717.0,98716.0,0.001]
[1735181283889,0.0001714,98717.0,98716.0,0.01126792]
[1735181284116,0.0001714,98717.0,98716.0,0.001]
[1735181284321,0.0001714,98717.0,98716.0,0.01126792]
[1735181284506,0.0001714,98717.0,98716.0,0.001]
[1735181284650,0.0001714,98717.0,98716.0,0.01126792]
[1735181286829,0.47945772,98717.0,98716.0,0.01126792]
[1735181287084,0.162099,98705.0,98700.0,8.57e-05]
[1735181287325,0.26735281,98704.0,98700.0,8.57e-05]
[1735181289194,0.10525281,98704.0,98700.0,8.57e-05]
[1735181290315,0.10625281,98704.0,98700.0,8.57e-05]
[1735181290581,0.001,98704.0,98700.0,8.57e-05]
[1735181290806,0.001,98704.0,98701.0,0.01033051]
[1735181291521,0.09058394,98707.0,98701.0,0.01033051]
[1735181292179,0.0012664,98708.0,98701.0,0.01033051]
[1735181292370,0.0012664,98711.0,98701.0,0.01033051]
[1735181292582,0.10398632,98710.0,98701.0,0.01033051]
[1735181292762,0.005,98704.0,98701.0,0.01033051]
[1735181292973,0.007,98704.0,98701.0,0.01033051]
[1735181293173,0.002,98704.0,98701.0,0.01033051]
[1735181293379,0.003,98708.0,98701.0,0.01033051]
[1735181293783,0.0012664,98709.0,98701.0,0.01033051]
[1735181293987,0.002,98704.0,98701.0,0.01033051]
[1735181294142,0.10525272,98709.0,98701.0,0.01033051]
[1735181294583,0.003,98708.0,98701.0,0.01033051]
[1735181295704,0.10525272,98709.0,98701.0,0.01033051]
[1735181295933,0.002,98704.0,98701.0,0.01033051]
[1735181296411,0.10525272,98709.0,98701.0,0.01033051]
[1735181296692,0.001,98708.0,98701.0,0.01033051]
[1735181296963,0.412104,98702.0,98701.0,0.01033051]
[1735181297195,0.51609032,98702.0,98701.0,0.01033051]
[1735181297433,0.412105,98701.0,98700.0,8.57e-05]
[1735181297652,0.51609132,98701.0,98700.0,8.57e-05]
[1735181298112,0.35414144,98701.0,98700.0,8.57e-05]
[1735181299475,0.36214144,98701.0,98700.0,8.57e-05]
[1735181299948,0.35914144,98701.0,98700.0,8.57e-05]
[1735181300166,0.36114144,98701.0,98700.0,8.57e-05]
[1735181305118,0.49701736,98701.0,98700.0,8.57e-05]
[1735181306079,0.36114144,98701.0,98700.0,8.57e-05]
[1735181308846,0.00715512,98701.0,98700.0,8.57e-05]
[1735181309835,0.00515512,98701.0,98700.0,0.01899958]
[1735181310070,0.00515512,98701.0,98700.0,8.57e-05]
[1735181310312,0.00015512,98701.0,98700.0,0.00882467]
[1735181310559,0.00115512,98701.0,98700.0,8.57e-05]
[1735181310791,0.00115512,98701.0,98700.0,0.00882467]
[1735181310792,0.00315512,98701.0,98700.0,0.00882467]
[1735181311039,0.00315512,98701.0,98700.0,8.57e-05]
[1735181311259,0.00315512,98701.0,98700.0,0.03182467]
[1735181311491,0.00315512,98701.0,98700.0,0.12513249]
[1735181311751,0.00332672,98701.0,98700.0,0.12513249]
[1735181311995,0.00132672,98701.0,98700.0,0.12513249]
[1735181312433,0.00032672,98701.0,98700.0,0.12513249]
[1735181312657,0.00032672,98701.0,98700.0,0.12713249]
[1735181313385,0.00032672,98701.0,98700.0,0.37851881]
[1735181313638,0.00032672,98701.0,98700.0,0.18303949]
[1735181313865,0.00032672,98701.0,98700.0,0.01082467]
[1735181315254,0.23131304,98701.0,98700.0,0.01082467]
[1735181315463,19.23131304,98701.0,98700.0,0.01082467]
[1735181315687,19.23131304,98701.0,98700.0,0.0060857]
[1735181315934,19.23131304,98701.0,98700.0,0.0040857]
[1735181316173,19.23131304,98701.0,98700.0,0.0020857]
[1735181316363,19.23531304,98701.0,98700.0,0.0020857]
[1735181316624,19.38531304,98701.0,98700.0,8.57e-05]
[1735181316842,19.48531304,98701.0,98700.0,8.57e-05]
[1735181317056,19.51770018,98701.0,98700.0,8.57e-05]
[1735181317242,19.52792955,98701.0,98700.0,8.57e-05]
[1735181317498,19.53093051,98701.0,98700.0,8.57e-05]
[1735181318150,19.52993051,98701.0,98700.0,8.57e-05]
[1735181318344,19.86433798,98701.0,98700.0,8.57e-05]
[1735181318602,19.85733798,98701.0,98700.0,8.57e-05]
[1735181318792,19.85633798,98701.0,98700.0,8.57e-05]
[1735181319014,19.86033798,98701.0,98700.0,8.57e-05]
[1735181319462,19.86933798,98701.0,98700.0,8.57e-05]
[1735181319722,20.08279784,98701.0,98700.0,8.57e-05]
[1735181320237,20.09479784,98701.0,98700.0,8.57e-05]
[1735181320430,20.08579784,98701.0,98700.0,8.57e-05]
[1735181321024,20.03996585,98701.0,98700.0,8.57e-05]
[1735181321687,20.03696585,98701.0,98700.0,8.57e-05]
[1735181321899,20.04596585,98701.0,98700.0,8.57e-05]
[1735181322129,20.04896585,98701.0,98700.0,8.57e-05]
[1735181322623,20.05796585,98701.0,98700.0,8.57e-05]
[1735181324640,20.05796585,98701.0,98672.0,8.58e-05]
[1735181324641,0.1,98692.0,98672.0,0.147053]
[1735181324842,0.1052531,98691.0,98672.0,0.147053]
[1735181325091,0.1052531,98691.0,98673.0,0.01171977]
[1735181325672,0.1052531,98691.0,98675.0,0.162148]
[1735181325921,0.1052531,98691.0,98674.0,0.00405349]
[1735181326138,0.1092531,98691.0,98676.0,0.16992779]
[1735181326327,0.1092531,98691.0,98676.0,0.162146]
[1735181326562,0.1052531,98691.0,98677.0,0.0118337]
[1735181326656,0.1052531,98691.0,98684.0,0.162133]
[1735181326657,0.1102531,98691.0,98684.0,0.162133]
[1735181327135,0.10898632,98691.0,98685.0,0.00776755]
[1735181327824,0.00126665,98690.0,98685.0,0.00776755]
[1735181328010,0.001,98691.0,98685.0,0.16989855]
[1735181328222,0.002,98691.0,98685.0,0.162131]
[1735181328426,0.002,98691.0,98686.0,0.00776597]
[1735181328921,0.003,98691.0,98686.0,0.00776597]
[1735181329112,0.1,98692.0,98686.0,0.00776597]
[1735181329332,0.001,98691.0,98686.0,0.00776597]
[1735181329575,0.002,98691.0,98686.0,0.00776597]
[1735181329805,0.1,98692.0,98686.0,0.00776597]
[1735181330044,0.001,98691.0,98686.0,0.00776597]
[1735181331214,0.1,98692.0,98686.0,0.00776597]
[1735181331587,0.1,98692.0,98686.0,0.001]
[1735181332158,0.1,98692.0,98680.0,0.16214]
[1735181332419,0.1,98692.0,98681.0,0.00790778]
[1735181332615,0.1,98692.0,98686.0,0.001]
[1735181332876,0.10525292,98691.0,98686.0,0.001]
[1735181333100,0.10525292,98691.0,98677.0,0.162144]
[1735181333329,0.10525292,98691.0,98680.0,0.001]
[1735181334547,0.10525292,98691.0,98670.0,0.0764]
[1735181335014,0.10525292,98691.0,98674.0,0.16215]
[1735181335219,0.10525292,98691.0,98686.0,0.001]
[1735181335605,0.1271,98690.0,98675.0,0.00405316]
[1735181335801,0.1052531,98689.0,98675.0,0.00405316]
[1735181336649,0.1052531,98689.0,98676.0,0.00405316]
[1735181337232,0.1052531,98689.0,98674.0,0.001]
[1735181337458,0.1956212,98689.0,98672.0,8.58e-05]
[1735181337656,0.1956212,98689.0,98686.0,0.001]
[1735181338281,0.19735442,98689.0,98674.0,0.16215]
[1735181338500,0.19535442,98689.0,98674.0,0.16215]
[1735181338725,0.19535442,98689.0,98676.0,0.324292]
[1735181338943,0.19635442,98689.0,98676.0,0.324292]
[1735181339076,0.19635442,98689.0,98677.0,0.00790761]
[1735181339298,0.00126672,98688.0,98677.0,0.00790761]
[1735181339502,0.10398632,98687.0,98677.0,0.00790761]
[1735181339740,0.00126672,98686.0,98677.0,0.00790761]
[1735181339943,0.10398632,98685.0,98677.0,0.00790761]
[1735181340193,0.00126672,98684.0,98677.0,0.00790761]
[1735181341021,0.00126672,98684.0,98673.0,0.162151]
[1735181341224,0.00126672,98684.0,98678.0,0.00789845]
[1735181341487,0.00126672,98684.0,98677.0,0.002]
[1735181341753,0.00126672,98684.0,98679.0,0.00789866]
[1735181342002,0.00126672,98684.0,98678.0,0.00790024]
[1735181342216,0.00126672,98684.0,98680.0,0.00789707]
[1735181342406,0.00126672,98684.0,98679.0,0.00789866]
[1735181342577,0.0903681,98688.0,98678.0,0.163143]
[1735181342808,0.0012667,98687.0,98680.0,0.00789707]
[1735181343021,0.0012667,98687.0,98679.0,0.00789866]
[1735181343218,0.0012667,98687.0,98681.0,0.00789549]
[1735181343416,0.0012667,98687.0,98680.0,0.00789707]
[1735181343624,0.0012667,98687.0,98682.0,0.00789391]
[1735181343781,0.0012667,98687.0,98681.0,0.00789549]
[1735181343987,0.0012667,98687.0,98683.0,0.00789233]
[1735181344262,0.0012667,98687.0,98682.0,0.00789391]
[1735181344466,0.0012667,98687.0,98684.0,0.00789075]
[1735181344662,0.0012667,98687.0,98683.0,0.00789233]
[1735181344810,0.0012667,98687.0,98685.0,0.00788916]
[1735181345077,0.0012667,98687.0,98684.0,0.00789075]
[1735181345236,0.0012667,98687.0,98682.0,0.001]
[1735181345444,0.0012667,98687.0,98685.0,0.00788916]
[1735181345658,0.0012667,98687.0,98684.0,0.001]
[1735181346033,0.0012667,98687.0,98685.0,0.00788916]
[1735181346238,0.0014383,98687.0,98685.0,0.00788916]
[1735181346436,0.0014383,98687.0,98684.0,0.001]
[1735181346842,0.0014383,98687.0,98685.0,0.00788916]
[1735181347093,0.0001716,98687.0,98685.0,0.00788916]
[1735181347322,0.0001716,98687.0,98682.0,0.002]
[1735181347786,0.0001716,98687.0,98683.0,0.17002733]
[1735181347902,0.0001716,98687.0,98686.0,0.16213]
[1735181348138,0.0001716,98687.0,98686.0,0.17001758]
[1735181349232,0.0001716,98687.0,98686.0,0.00788758]
[1735181350146,0.0001716,98687.0,98686.0,0.001]
[1735181350367,0.0001716,98687.0,98686.0,0.00988758]
[1735181352261,0.0001716,98687.0,98686.0,0.002]
[1735181353569,0.0001716,98687.0,98686.0,0.00986305]
[1735181354271,0.0001716,98687.0,98686.0,0.03286305]
[1735181355365,0.0001716,98687.0,98686.0,0.03186305]
[1735181355578,0.0011716,98687.0,98686.0,0.03586305]
[1735181355996,0.0011716,98687.0,98686.0,0.03486305]
[1735181356213,0.0011716,98687.0,98686.0,0.03786305]
[1735181356855,0.0011716,98687.0,98686.0,0.03486305]
[1735181357048,0.0011716,98687.0,98686.0,0.03786305]
[1735181357264,0.0011716,98687.0,98686.0,0.01486305]
[1735181357467,0.0001716,98687.0,98686.0,0.01086305]
[1735181357687,0.0001716,98687.0,98686.0,0.03086305]
[1735181357933,0.10415792,98687.0,98686.0,0.01486305]
[1735181358177,0.11573669,98687.0,98686.0,0.01086305]
[1735181358402,0.11573669,98687.0,98686.0,0.007]
[1735181358632,0.11573669,98687.0,98686.0,0.003]
[1735181359142,0.11673669,98687.0,98672.0,8.58e-05]
[1735181359370,0.10525309,98686.0,98672.0,8.58e-05]
[1735181361199,0.10625309,98686.0,98672.0,8.58e-05]
[1735181361409,0.10525309,98686.0,98672.0,8.58e-05]
[1735181361759,0.09055455,98683.0,98672.0,0.0010858]
[1735181361973,0.10525312,98682.0,98672.0,8.58e-05]
[1735181364418,0.10725312,98682.0,98672.0,8.58e-05]
[1735181365051,0.10925312,98682.0,98672.0,8.58e-05]
[1735181365251,0.10725312,98682.0,98672.0,8.58e-05]
[1735181365681,0.162148,98676.0,98672.0,8.58e-05]
[1735181365901,0.16215,98674.0,98672.0,8.58e-05]
[1735181366110,0.10525325,98673.0,98672.0,8.58e-05]
[1735181366895,0.16614325,98673.0,98672.0,8.58e-05]
[1735181367112,0.10525325,98673.0,98672.0,0.0020858]
[1735181367319,0.10525325,98673.0,98672.0,0.0010858]
[1735181367754,0.10725325,98673.0,98672.0,0.0010858]
[1735181368196,0.10925325,98673.0,98672.0,0.0010858]
[1735181368397,0.10925325,98673.0,98672.0,8.58e-05]
[1735181368822,0.11025325,98673.0,98672.0,8.58e-05]
[1735181369256,0.10925325,98673.0,98672.0,8.58e-05]
[1735181369486,0.11525803,98673.0,98672.0,8.58e-05]
[1735181369870,0.20781258,98673.0,98672.0,8.58e-05]
[1735181370095,0.20654565,98673.0,98672.0,8.58e-05]
[1735181370246,0.20754565,98673.0,98672.0,8.58e-05]
[1735181370654,0.20454565,98673.0,98672.0,8.58e-05]
[1735181370872,0.20581262,98673.0,98672.0,8.58e-05]
[1735181371075,0.11525807,98673.0,98672.0,8.58e-05]
[1735181371903,0.11525807,98673.0,98672.0,0.0010858]
[1735181372118,0.10398632,98673.0,98672.0,0.0010858]
[1735181373566,0.09055455,98674.0,98673.0,0.162151]
[1735181374185,0.09055455,98681.0,98680.0,0.16214]
[1735181375383,0.0001716,98692.0,98680.0,0.32428]
[1735181375645,0.00143826,98692.0,98680.0,0.32428]
[1735181375872,0.00143826,98692.0,98680.0,0.16214]
[1735181376094,0.00143826,98692.0,98672.0,8.58e-05]
[1735181376095,0.1,98679.0,98672.0,8.58e-05]
[1735181376315,0.35398632,98673.0,98672.0,8.58e-05]
[1735181377241,0.41487632,98673.0,98672.0,8.58e-05]
[1735181377458,0.35398632,98673.0,98672.0,8.58e-05]
[1735181378103,0.36405064,98673.0,98672.0,8.58e-05]
[1735181378573,0.36505064,98673.0,98672.0,8.58e-05]
[1735181379009,0.36605064,98673.0,98672.0,8.58e-05]
[1735181379281,0.36405064,98673.0,98672.0,8.58e-05]
[1735181379503,0.36605064,98673.0,98672.0,8.58e-05]
[1735181379967,0.55569,98664.0,98653.0,0.00405024]
[1735181380155,0.1,98638.0,98628.0,0.09017072]
[1735181380400,0.10525377,98637.0,98628.0,0.09017072]
[1735181380633,0.20525377,98637.0,98628.0,0.09017072]
[1735181381319,0.20540875,98637.0,98628.0,0.09017072]
[1735181381442,0.20540875,98637.0,98610.0,0.162253]
[1735181381677,0.20540875,98637.0,98615.0,0.162245]
[1735181382091,0.22578632,98636.0,98605.0,8.59e-05]
[1735181382303,0.1,98622.0,98605.0,8.59e-05]
[1735181382519,0.35398632,98612.0,98605.0,8.59e-05]
[1735181384657,0.42948632,98612.0,98605.0,8.59e-05]
[1735181385090,0.47578632,98612.0,98605.0,8.59e-05]
[1735181385498,0.47878632,98612.0,98605.0,8.59e-05]
[1735181385958,0.47978632,98612.0,98605.0,8.59e-05]
[1735181386162,0.47678632,98612.0,98605.0,8.59e-05]
[1735181386601,0.40328632,98612.0,98605.0,8.59e-05]
[1735181386811,0.35698632,98612.0,98605.0,8.59e-05]
[1735181387875,0.35898632,98612.0,98605.0,8.59e-05]
[1735181388092,0.35598632,98612.0,98605.0,8.59e-05]
[1735181388372,0.35998632,98612.0,98605.0,8.59e-05]
[1735181388582,0.11098632,98612.0,98606.0,0.3393743]
[1735181388801,0.10498632,98612.0,98611.0,0.00487686]
[1735181389021,0.10698632,98612.0,98611.0,0.0001]
[1735181389233,0.10698632,98612.0,98611.0,0.00487686]
[1735181389444,0.10598632,98612.0,98611.0,0.0001]
[1735181389663,0.10598632,98612.0,98611.0,0.00487686]
[1735181389889,0.10598632,98612.0,98611.0,0.0001]
[1735181390094,0.10598632,98612.0,98611.0,0.00487686]
[1735181390304,0.10398632,98612.0,98611.0,0.0001]
[1735181390519,0.10398632,98612.0,98611.0,0.00487686]
[1735181390727,0.10398632,98612.0,98611.0,0.0001]
[1735181391178,0.10398632,98612.0,98611.0,0.00587686]
[1735181391608,0.10398632,98612.0,98611.0,0.00687686]
[1735181391875,0.10398632,98612.0,98611.0,0.00487686]
[1735181392132,0.10398632,98612.0,98611.0,0.00587686]
[1735181392372,0.10398632,98612.0,98611.0,0.00687686]
[1735181392588,0.10398632,98612.0,98611.0,0.00487686]
[1735181392801,0.10398632,98612.0,98611.0,0.00687686]
[1735181393040,0.10398632,98612.0,98611.0,0.00696266]
[1735181393263,0.10398632,98612.0,98611.0,0.00596266]
[1735181393502,0.10398632,98612.0,98611.0,0.00796266]
[1735181394790,0.10398632,98612.0,98611.0,0.00596266]
[1735181395538,0.10398632,98612.0,98611.0,0.00696266]
[1735181396003,0.10398632,98612.0,98611.0,0.00596266]
[1735181396706,0.10398632,98612.0,98611.0,0.00696266]
[1735181397131,0.00126763,98620.0,98611.0,0.16921566]
[1735181397340,0.10398632,98619.0,98611.0,0.16921566]
[1735181397597,0.47698632,98612.0,98611.0,0.00696266]
[1735181397848,0.35398632,98612.0,98611.0,0.0021858]
[1735181398100,0.35398632,98612.0,98611.0,0.0001858]
[1735181398322,0.38731151,98612.0,98611.0,0.0011858]
[1735181398810,0.38731151,98612.0,98611.0,0.0001858]
[1735181398811,0.39331151,98612.0,98611.0,0.0001858]
[1735181399038,0.68476176,98612.0,98611.0,0.0001858]
[1735181399261,0.41089,98601.0,98582.0,0.00402877]
[1735181399504,0.35398632,98601.0,98582.0,0.00402877]
[1735181399731,0.35398632,98601.0,98575.0,0.162311]
[1735181400191,0.35398632,98601.0,98580.0,0.162304]
[1735181400453,0.35398632,98601.0,98584.0,0.162296]
[1735181400682,0.00015486,98601.0,98590.0,0.10616806]
[1735181400903,0.00015486,98601.0,98598.0,0.162275]
[1735181401140,0.00015486,98601.0,98598.0,0.32455]
[1735181401374,0.00115486,98601.0,98598.0,0.32455]
[1735181401606,0.00015486,98601.0,98598.0,0.32455]
[1735181401834,0.20414118,98601.0,98599.0,0.00402877]
[1735181402061,0.20640908,98601.0,98599.0,0.00402877]
[1735181402277,0.20640908,98601.0,98600.0,0.006]
[1735181402278,0.20414118,98601.0,98600.0,0.006]
[1735181402497,0.20414118,98601.0,98600.0,0.007]
[1735181402724,0.20414118,98601.0,98600.0,0.006]
[1735181402950,0.20540904,98601.0,98600.0,0.005]
[1735181403422,0.20414118,98601.0,98600.0,0.005]
[1735181404155,0.60404118,98601.0,98600.0,0.005]
[1735181404378,0.66393118,98601.0,98600.0,0.005]
[1735181404602,0.48004118,98601.0,98600.0,0.006]
[1735181405101,0.48004118,98601.0,98600.0,0.005]
[1735181405341,0.48104118,98601.0,98600.0,0.005]
[1735181405566,0.48504118,98601.0,98600.0,0.005]
[1735181405785,0.48404118,98601.0,98600.0,0.005]
[1735181406010,0.36614118,98601.0,98600.0,0.005]
[1735181406235,0.26914118,98601.0,98600.0,0.005]
[1735181406462,0.36914118,98601.0,98600.0,0.005]
[1735181406909,0.36914118,98601.0,98600.0,0.0050858]
[1735181407110,0.21914118,98601.0,98600.0,0.0050858]
[1735181407343,0.35714118,98601.0,98600.0,0.0050858]
[1735181407506,0.35814118,98601.0,98600.0,0.0050858]
[1735181407707,0.35914118,98601.0,98600.0,0.0050858]
[1735181408564,0.35814118,98601.0,98600.0,0.0050858]
[1735181408779,0.35814118,98601.0,98600.0,0.00325364]
[1735181409012,0.35514118,98601.0,98600.0,0.00729932]
[1735181409247,0.25514118,98601.0,98600.0,0.00729932]
[1735181409481,0.10714118,98601.0,98600.0,0.00729932]
[1735181410431,0.37333118,98601.0,98600.0,0.00729932]
[1735181410670,0.37133118,98601.0,98600.0,0.00729932]
[1735181410894,0.273,98597.0,98596.0,1e-08]
[1735181411120,0.37698632,98597.0,98596.0,1e-08]
[1735181412338,0.1,98592.0,98591.0,0.0001]
[1735181412567,0.1,98592.0,98551.0,0.0001]
[1735181412568,0.1,98552.0,98551.0,0.0001]
[1735181412812,0.48417632,98552.0,98551.0,0.0001]
[1735181413071,0.25398632,98552.0,98551.0,0.0001]
[1735181413316,0.35398632,98552.0,98551.0,0.0001]
[1735181413567,0.37698632,98552.0,98551.0,0.0001]
[1735181414015,0.33803107,98552.0,98551.0,0.0001]
[1735181414234,0.43803107,98552.0,98551.0,0.0001]
[1735181414704,0.44003107,98552.0,98551.0,0.0001]
[1735181415175,0.35614107,98552.0,98551.0,0.0001]
[1735181415413,0.00715475,98552.0,98551.0,0.0001]
[1735181416106,0.40163107,98552.0,98551.0,0.0001]
[1735181416339,0.45179418,98552.0,98551.0,0.0001]
[1735181416572,0.40163107,98552.0,98551.0,0.0001]
[1735181416800,0.25614107,98552.0,98551.0,0.0001]
[1735181417257,0.25414107,98552.0,98551.0,0.0001]
[1735181417478,0.35414107,98552.0,98551.0,0.0001]
[1735181417720,0.36114107,98552.0,98551.0,0.0001]
[1735181417936,0.35414107,98552.0,98551.0,0.0001]
[1735181418162,0.25514107,98552.0,98551.0,0.0001858]
[1735181418403,0.25814107,98552.0,98551.0,0.0001858]
[1735181418625,0.25514107,98552.0,98551.0,0.0001858]
[1735181418933,0.26114107,98552.0,98551.0,0.0001858]
[1735181419166,0.36214107,98552.0,98551.0,0.0001858]
[1735181419384,0.26214107,98552.0,98551.0,0.0001858]
[1735181419598,0.11214107,98552.0,98551.0,0.0001858]
[1735181419821,0.00815475,98552.0,98551.0,0.0001858]
[1735181420301,0.33374107,98552.0,98551.0,0.0001858]
[1735181420518,0.33574107,98552.0,98551.0,0.0001858]
[1735181420950,0.35874107,98552.0,98551.0,0.0001858]
[1735181421398,0.67063107,98552.0,98551.0,0.0001858]
[1735181421613,0.61874107,98552.0,98551.0,0.0001858]
[1735181421818,0.51574107,98552.0,98551.0,0.0001858]
[1735181422141,0.52074107,98552.0,98551.0,0.0001858]
[1735181422598,0.1,98541.0,98540.0,0.0004]
[1735181422824,0.35525519,98541.0,98540.0,0.0004]
[1735181423044,0.35398632,98541.0,98540.0,0.0004]